[Event "*** Titled Tuesday Blitz"]
[Site "Chess.com"]
[Date "2019.01.01"]
[Round "10"]
[White "MehdiHosseinipour"]
[Black "DryCounty"]
[Result "1-0"]
[WhiteElo "2584"]
[BlackElo "2702"]
[TimeControl "180+2"]
[EndTime "15:21:31 PST"]
[Termination "MehdiHosseinipour won by resignation"]

1. e4 {[%clk 0:03:01.9]} 1... Nf6 {[%clk 0:03:00.4]} 2. e5 {[%clk 0:03:03]} 2...
Nd5 {[%clk 0:03:01.5]} 3. d4 {[%clk 0:03:04.7]} 3... d6 {[%clk 0:03:02.5]} 4.
Nf3 {[%clk 0:03:06.2]} 4... g6 {[%clk 0:03:03.1]} 5. Bc4 {[%clk 0:03:07]} 5...
Nb6 {[%clk 0:03:04.1]} 6. Bb3 {[%clk 0:03:08.1]} 6... Bg7 {[%clk 0:03:05.6]} 7.
O-O {[%clk 0:03:03.4]} 7... dxe5 {[%clk 0:03:05.7]} 8. Nxe5 {[%clk 0:03:02.6]}
8... O-O {[%clk 0:03:00.4]} 9. h3 {[%clk 0:02:59.9]} 9... Bxe5 {[%clk
0:02:59.8]} 10. dxe5 {[%clk 0:03:00.9]} 10... Qxd1 {[%clk 0:03:01.1]} 11. Rxd1
{[%clk 0:03:02.8]} 11... Nc6 {[%clk 0:03:02.1]} 12. f4 {[%clk 0:03:03.3]} 12...
Bf5 {[%clk 0:02:54.4]} 13. Nc3 {[%clk 0:02:59.8]} 13... Rfd8 {[%clk 0:02:54.1]}
14. Be3 {[%clk 0:02:55.4]} 14... Na5 {[%clk 0:02:50.4]} 15. g4 {[%clk
0:02:25.3]} 15... Nxb3 {[%clk 0:02:48.8]} 16. cxb3 {[%clk 0:02:27.2]} 16... Bc2
{[%clk 0:02:38.9]} 17. Rxd8+ {[%clk 0:02:20.3]} 17... Rxd8 {[%clk 0:02:39]} 18.
Rc1 {[%clk 0:02:21.9]} 18... Bd3 {[%clk 0:02:29.6]} 19. Rd1 {[%clk 0:02:20.8]}
19... Rd7 {[%clk 0:02:24.8]} 20. Bxb6 {[%clk 0:02:01]} 20... axb6 {[%clk
0:02:25.2]} 21. a4 {[%clk 0:01:44.5]} 21... Kf8 {[%clk 0:02:21.2]} 22. Kf2
{[%clk 0:01:37]} 22... Ke8 {[%clk 0:02:22.1]} 23. Ke3 {[%clk 0:01:38.1]} 23...
Bc2 {[%clk 0:02:19.2]} 24. Rxd7 {[%clk 0:01:37.8]} 24... Kxd7 {[%clk 0:02:20.6]}
25. b4 {[%clk 0:01:39.6]} 25... h5 {[%clk 0:02:13.5]} 26. Kd4 {[%clk 0:01:27.2]}
26... h4 {[%clk 0:02:08.4]} 27. a5 {[%clk 0:01:27.5]} 27... c5+ {[%clk
0:01:44.5]} 28. bxc5 {[%clk 0:01:26.8]} 28... bxa5 {[%clk 0:01:45.3]} 29. Nd5
{[%clk 0:00:54.2]} 29... Bd1 {[%clk 0:01:40]} 30. Ke4 {[%clk 0:00:55]} 30... Kc6
{[%clk 0:01:35.7]} 31. Nxe7+ {[%clk 0:00:52.9]} 31... Kxc5 {[%clk 0:01:36.7]}
32. e6 {[%clk 0:00:50.5]} 32... fxe6 {[%clk 0:01:36.6]} 33. Nxg6 {[%clk
0:00:51.7]} 33... Bc2+ {[%clk 0:01:37.7]} 34. Ke5 {[%clk 0:00:53]} 34... Bxg6
{[%clk 0:01:34.8]} 35. Kxe6 {[%clk 0:00:54.9]} 35... Bc2 {[%clk 0:01:09.2]} 36.
f5 {[%clk 0:00:55.8]} 36... Kd4 {[%clk 0:01:02.6]} 37. f6 {[%clk 0:00:52]} 37...
Bb3+ {[%clk 0:01:02.4]} 38. Ke7 {[%clk 0:00:40.2]} 38... Ke5 {[%clk 0:01:01.9]}
39. f7 {[%clk 0:00:36.8]} 39... Bxf7 {[%clk 0:01:02]} 40. Kxf7 {[%clk
0:00:38.5]} 40... Kf4 {[%clk 0:01:01.4]} 41. Kf6 {[%clk 0:00:38.1]} 41... Kg3
{[%clk 0:00:30]} 42. g5 {[%clk 0:00:40]} 42... Kxh3 {[%clk 0:00:31]} 43. g6
{[%clk 0:00:41.6]} 43... Kg2 {[%clk 0:00:30]} 44. g7 {[%clk 0:00:43.5]} 44... h3
{[%clk 0:00:31.3]} 45. g8=Q+ {[%clk 0:00:45]} 45... Kf2 {[%clk 0:00:32.6]} 1-0

[Event "*** Titled Tuesday Blitz"]
[Site "Chess.com"]
[Date "2019.01.01"]
[Round "10"]
[White "novocane"]
[Black "minnesotachessmaster"]
[Result "0-1"]
[WhiteElo "2096"]
[BlackElo "1969"]
[TimeControl "180+2"]
[EndTime "15:21:31 PST"]
[Termination "minnesotachessmaster won on time"]

1. d4 {[%clk 0:02:56.1]} 1... Nf6 {[%clk 0:02:59.4]} 2. c4 {[%clk 0:02:57.3]}
2... e6 {[%clk 0:03:00.1]} 3. Nc3 {[%clk 0:02:58.3]} 3... Bb4 {[%clk 0:03:00.1]}
4. e3 {[%clk 0:02:59.7]} 4... O-O {[%clk 0:02:59.8]} 5. Ne2 {[%clk 0:03:01]}
5... c5 {[%clk 0:02:57.6]} 6. a3 {[%clk 0:03:00.9]} 6... Bxc3+ {[%clk
0:02:57.8]} 7. Nxc3 {[%clk 0:03:01.8]} 7... cxd4 {[%clk 0:02:55.9]} 8. exd4
{[%clk 0:03:02.9]} 8... d5 {[%clk 0:02:54.9]} 9. Bg5 {[%clk 0:03:03]} 9... h6
{[%clk 0:02:45.6]} 10. Bxf6 {[%clk 0:03:02.7]} 10... Qxf6 {[%clk 0:02:45.9]} 11.
cxd5 {[%clk 0:03:00]} 11... exd5 {[%clk 0:02:46.4]} 12. Nxd5 {[%clk 0:03:00.5]}
12... Qe6+ {[%clk 0:02:38.2]} 13. Ne3 {[%clk 0:02:59.1]} 13... Rd8 {[%clk
0:02:38]} 14. Bc4 {[%clk 0:02:33.9]} 14... Qf6 {[%clk 0:02:11.9]} 15. O-O {[%clk
0:01:57]} 15... Qxd4 {[%clk 0:02:01.4]} 16. Qb3 {[%clk 0:01:45.3]} 16... Nc6
{[%clk 0:01:51.1]} 17. Bxf7+ {[%clk 0:01:40.8]} 17... Kh8 {[%clk 0:01:52.3]} 18.
Be6 {[%clk 0:01:36.4]} 18... Bxe6 {[%clk 0:01:49.3]} 19. Qxe6 {[%clk 0:01:36.7]}
19... Rd6 {[%clk 0:01:50.3]} 20. Qg4 {[%clk 0:01:27.4]} 20... Qxb2 {[%clk
0:01:40.4]} 21. Rab1 {[%clk 0:01:20]} 21... Qf6 {[%clk 0:01:37.7]} 22. Rxb7
{[%clk 0:01:11.9]} 22... Ne5 {[%clk 0:01:32.6]} 23. Qa4 {[%clk 0:01:06.9]} 23...
Rf8 {[%clk 0:01:28.7]} 24. Ng4 {[%clk 0:00:57.1]} 24... Nxg4 {[%clk 0:01:21.1]}
25. Qxg4 {[%clk 0:00:59]} 25... Rd2 {[%clk 0:01:22.3]} 26. Qg3 {[%clk
0:00:43.4]} 26... Qd4 {[%clk 0:01:18.6]} 27. h3 {[%clk 0:00:37.2]} 27... Rd3
{[%clk 0:01:16.8]} 28. Qg6 {[%clk 0:00:23.9]} 28... Rxa3 {[%clk 0:01:12.7]} 29.
Qc6 {[%clk 0:00:11.3]} 29... Ra2 {[%clk 0:00:51.7]} 30. Qc7 {[%clk 0:00:11.9]}
30... Raxf2 {[%clk 0:00:48.6]} 31. Rxf2 {[%clk 0:00:13.2]} 31... Qxf2+ {[%clk
0:00:49.6]} 32. Kh2 {[%clk 0:00:14.3]} 32... Qf4+ {[%clk 0:00:42.3]} 33. Qxf4
{[%clk 0:00:14.3]} 33... Rxf4 {[%clk 0:00:43.3]} 34. Rxa7 {[%clk 0:00:06]} 34...
Rf6 {[%clk 0:00:40.8]} 35. Kg3 {[%clk 0:00:03.3]} 35... Kh7 {[%clk 0:00:41.6]}
0-1

[Event "*** Titled Tuesday Blitz"]
[Site "Chess.com"]
[Date "2019.01.01"]
[Round "10"]
[White "AnonymousBread"]
[Black "VNeimer"]
[Result "1-0"]
[WhiteElo "2537"]
[BlackElo "2407"]
[TimeControl "180+2"]
[EndTime "15:21:39 PST"]
[Termination "AnonymousBread won by resignation"]

1. d4 {[%clk 0:03:01.9]} 1... Nf6 {[%clk 0:03:00.2]} 2. Nc3 {[%clk 0:03:00]}
2... d5 {[%clk 0:03:00.4]} 3. Bf4 {[%clk 0:03:00.5]} 3... e6 {[%clk 0:02:30.5]}
4. e3 {[%clk 0:03:00.7]} 4... Bb4 {[%clk 0:02:27.7]} 5. Bd3 {[%clk 0:03:00.4]}
5... c5 {[%clk 0:02:26]} 6. dxc5 {[%clk 0:02:59.8]} 6... Nbd7 {[%clk 0:02:25.2]}
7. Nf3 {[%clk 0:02:40.6]} 7... Nxc5 {[%clk 0:02:21.1]} 8. O-O {[%clk 0:02:41.1]}
8... O-O {[%clk 0:02:18.8]} 9. Ne2 {[%clk 0:02:40.2]} 9... Nxd3 {[%clk
0:02:15.1]} 10. cxd3 {[%clk 0:02:42.1]} 10... Bd7 {[%clk 0:02:02.8]} 11. Rc1
{[%clk 0:02:41.2]} 11... Rc8 {[%clk 0:02:00.7]} 12. Qb3 {[%clk 0:02:41.4]} 12...
Qb6 {[%clk 0:01:58.6]} 13. Be5 {[%clk 0:02:38.4]} 13... Be7 {[%clk 0:01:38.1]}
14. Qxb6 {[%clk 0:02:34]} 14... axb6 {[%clk 0:01:40]} 15. h3 {[%clk 0:02:34.9]}
15... Rxc1 {[%clk 0:01:37.7]} 16. Rxc1 {[%clk 0:02:36.8]} 16... Rc8 {[%clk
0:01:38.7]} 17. Rxc8+ {[%clk 0:02:35.6]} 17... Bxc8 {[%clk 0:01:40.6]} 18. Bxf6
{[%clk 0:02:26.8]} 18... gxf6 {[%clk 0:01:38.5]} 19. d4 {[%clk 0:02:28.7]} 19...
Bd7 {[%clk 0:01:37]} 20. Nc3 {[%clk 0:02:24.1]} 20... Bd6 {[%clk 0:01:36.5]} 21.
Kf1 {[%clk 0:02:25.4]} 21... Bc6 {[%clk 0:01:36.1]} 22. Ke2 {[%clk 0:02:19.2]}
22... b5 {[%clk 0:01:37.5]} 23. Kd3 {[%clk 0:02:18.3]} 23... b4 {[%clk
0:01:38.8]} 24. Ne2 {[%clk 0:02:13.5]} 24... e5 {[%clk 0:01:38.3]} 25. Kd2
{[%clk 0:02:08.3]} 25... Kf8 {[%clk 0:01:24.8]} 26. Nh4 {[%clk 0:02:07.4]} 26...
Bd7 {[%clk 0:01:23.1]} 27. f4 {[%clk 0:01:49.9]} 27... Ke7 {[%clk 0:01:16.3]}
28. g4 {[%clk 0:01:49.8]} 28... h6 {[%clk 0:01:02]} 29. Nf3 {[%clk 0:01:32.3]}
29... exf4 {[%clk 0:00:54.9]} 30. exf4 {[%clk 0:01:25.6]} 30... f5 {[%clk
0:00:54.4]} 31. g5 {[%clk 0:00:55.6]} 31... hxg5 {[%clk 0:00:56.3]} 32. fxg5
{[%clk 0:00:57.3]} 32... f6 {[%clk 0:00:57.7]} 33. h4 {[%clk 0:00:55]} 33...
fxg5 {[%clk 0:00:58.4]} 34. hxg5 {[%clk 0:00:56.9]} 34... f4 {[%clk 0:00:54.7]}
35. Ne5 {[%clk 0:00:50.9]} 35... Bf5 {[%clk 0:00:53.7]} 36. Nxf4 {[%clk
0:00:48.4]} 36... Bb1 {[%clk 0:00:49.8]} 37. g6 {[%clk 0:00:22.8]} 37... Bxe5
{[%clk 0:00:51]} 38. dxe5 {[%clk 0:00:24.7]} 38... Bxa2 {[%clk 0:00:52.3]} 39.
Ke3 {[%clk 0:00:24.4]} 39... d4+ {[%clk 0:00:47.6]} 40. Kxd4 {[%clk 0:00:25]}
40... Bg8 {[%clk 0:00:47.3]} 41. Kc5 {[%clk 0:00:25.6]} 41... b3 {[%clk
0:00:47.5]} 42. Kb6 {[%clk 0:00:26.9]} 42... Kf8 {[%clk 0:00:42.4]} 43. Kxb7
{[%clk 0:00:27]} 43... Kg7 {[%clk 0:00:44.3]} 44. Kc6 {[%clk 0:00:25.2]} 44...
Kh6 {[%clk 0:00:45.6]} 45. e6 {[%clk 0:00:21.2]} 1-0

[Event "*** Titled Tuesday Blitz"]
[Site "Chess.com"]
[Date "2019.01.01"]
[Round "10"]
[White "m3alam"]
[Black "Bad4life"]
[Result "1-0"]
[WhiteElo "2143"]
[BlackElo "2337"]
[TimeControl "180+2"]
[EndTime "15:21:47 PST"]
[Termination "m3alam won by resignation"]

1. d4 {[%clk 0:03:01.9]} 1... Nf6 {[%clk 0:02:59.3]} 2. Nf3 {[%clk 0:03:02.7]}
2... g6 {[%clk 0:02:59.9]} 3. g3 {[%clk 0:03:04]} 3... Bg7 {[%clk 0:03:01.5]} 4.
Bg2 {[%clk 0:03:05.4]} 4... O-O {[%clk 0:03:03.4]} 5. O-O {[%clk 0:03:06.4]}
5... d6 {[%clk 0:03:05.3]} 6. c4 {[%clk 0:03:07.3]} 6... Nbd7 {[%clk 0:03:06.2]}
7. Nc3 {[%clk 0:03:09.2]} 7... e5 {[%clk 0:03:06.9]} 8. h3 {[%clk 0:03:09.1]}
8... c6 {[%clk 0:03:07.1]} 9. e4 {[%clk 0:03:09.2]} 9... Qb6 {[%clk 0:03:07.4]}
10. c5 {[%clk 0:03:07.8]} 10... dxc5 {[%clk 0:03:08]} 11. dxe5 {[%clk
0:03:08.8]} 11... Ne8 {[%clk 0:03:09.3]} 12. e6 {[%clk 0:03:09.9]} 12... fxe6
{[%clk 0:03:10.9]} 13. Ng5 {[%clk 0:03:11.3]} 13... Ne5 {[%clk 0:03:11.4]} 14.
f4 {[%clk 0:03:08.2]} 14... Nf7 {[%clk 0:03:12.4]} 15. Nxf7 {[%clk 0:03:04.9]}
15... Bd4+ {[%clk 0:03:13.4]} 16. Kh2 {[%clk 0:03:05.4]} 16... Rxf7 {[%clk
0:03:15.2]} 17. e5 {[%clk 0:03:05.7]} 17... Qc7 {[%clk 0:03:16.5]} 18. Ne2
{[%clk 0:03:04.7]} 18... Rd7 {[%clk 0:02:55.9]} 19. Qb3 {[%clk 0:03:04.6]} 19...
Rd5 {[%clk 0:02:50.7]} 20. Be3 {[%clk 0:02:54.9]} 20... c4 {[%clk 0:02:48]} 21.
Qa3 {[%clk 0:02:31.9]} 21... Ra5 {[%clk 0:02:46.1]} 22. Nxd4 {[%clk 0:02:29.3]}
22... Rxa3 {[%clk 0:02:45.5]} 23. bxa3 {[%clk 0:02:31]} 23... Qa5 {[%clk
0:02:36.9]} 24. Nc2 {[%clk 0:02:04.3]} 24... Nc7 {[%clk 0:02:36]} 25. Rad1
{[%clk 0:01:50.1]} 25... Nd5 {[%clk 0:02:36.3]} 26. Bd4 {[%clk 0:01:50]} 26...
Bd7 {[%clk 0:02:32.8]} 27. g4 {[%clk 0:01:49.5]} 27... Qa4 {[%clk 0:02:27.2]}
28. Be4 {[%clk 0:01:41.9]} 28... c3 {[%clk 0:02:23.3]} 29. f5 {[%clk 0:01:30.3]}
29... g5 {[%clk 0:02:15.1]} 30. f6 {[%clk 0:01:22.2]} 30... Kf7 {[%clk
0:02:10.2]} 31. Bxh7 {[%clk 0:01:15.8]} 31... Rh8 {[%clk 0:02:10.6]} 32. Bd3
{[%clk 0:01:14.9]} 32... Nf4 {[%clk 0:02:08.5]} 33. Rxf4 {[%clk 0:01:12.2]}
33... gxf4 {[%clk 0:02:08.7]} 34. g5 {[%clk 0:01:12.5]} 34... Rg8 {[%clk
0:01:43.2]} 35. Rg1 {[%clk 0:01:01.5]} 35... Be8 {[%clk 0:01:27.9]} 36. g6+
{[%clk 0:00:56.5]} 36... Rxg6 {[%clk 0:01:10.2]} 37. Bxg6+ {[%clk 0:00:56.2]}
37... Kg8 {[%clk 0:01:04.6]} 38. Bxe8+ {[%clk 0:00:45.2]} 38... Kf8 {[%clk
0:01:05.9]} 39. Bg6 {[%clk 0:00:45.6]} 39... b6 {[%clk 0:01:02.8]} 40. Bxc3
{[%clk 0:00:37.8]} 40... f3 {[%clk 0:00:57.5]} 41. Bb4+ {[%clk 0:00:33.4]} 41...
c5 {[%clk 0:00:58.3]} 42. Rd1 {[%clk 0:00:33.6]} 42... Qxc2+ {[%clk 0:00:19.4]}
43. Bxc2 {[%clk 0:00:32.4]} 43... cxb4 {[%clk 0:00:20.7]} 1-0

[Event "*** Titled Tuesday Blitz"]
[Site "Chess.com"]
[Date "2019.01.01"]
[Round "10"]
[White "Blitzstream"]
[Black "Bigfish1995"]
[Result "0-1"]
[WhiteElo "2573"]
[BlackElo "2899"]
[TimeControl "180+2"]
[EndTime "15:21:48 PST"]
[Termination "Bigfish1995 won by checkmate"]

1. e4 {[%clk 0:03:01.9]} 1... c5 {[%clk 0:02:49.2]} 2. Nf3 {[%clk 0:03:02.4]}
2... d6 {[%clk 0:02:50.5]} 3. d4 {[%clk 0:03:03.3]} 3... cxd4 {[%clk 0:02:51.9]}
4. Nxd4 {[%clk 0:03:05.2]} 4... Nf6 {[%clk 0:02:53.3]} 5. Nc3 {[%clk 0:03:06.7]}
5... a6 {[%clk 0:02:54.5]} 6. Rg1 {[%clk 0:03:08]} 6... Qb6 {[%clk 0:02:38]} 7.
Nb3 {[%clk 0:03:04.6]} 7... Bg4 {[%clk 0:02:35.2]} 8. Be2 {[%clk 0:02:58]} 8...
Bxe2 {[%clk 0:02:33.5]} 9. Qxe2 {[%clk 0:02:59.9]} 9... e6 {[%clk 0:02:33.6]}
10. Be3 {[%clk 0:03:00.3]} 10... Qc7 {[%clk 0:02:33.6]} 11. g4 {[%clk
0:02:55.4]} 11... Nc6 {[%clk 0:02:32.6]} 12. g5 {[%clk 0:02:55.8]} 12... Nd7
{[%clk 0:02:32.9]} 13. O-O-O {[%clk 0:02:56.6]} 13... g6 {[%clk 0:02:24]} 14.
Nd5 {[%clk 0:02:38.7]} 14... exd5 {[%clk 0:02:23.6]} 15. exd5 {[%clk 0:02:40.6]}
15... Ne7 {[%clk 0:02:24.6]} 16. Bd4 {[%clk 0:02:37.4]} 16... Rg8 {[%clk
0:02:25.2]} 17. Rg3 {[%clk 0:02:33.7]} 17... Ne5 {[%clk 0:01:56.8]} 18. f4
{[%clk 0:02:26.2]} 18... Nc4 {[%clk 0:01:53.4]} 19. Rc3 {[%clk 0:01:49]} 19...
b5 {[%clk 0:01:54.2]} 20. Nd2 {[%clk 0:01:46.3]} 20... Rc8 {[%clk 0:01:50.4]}
21. b3 {[%clk 0:01:41.5]} 21... Bg7 {[%clk 0:01:47.6]} 22. Nxc4 {[%clk
0:01:13.9]} 22... bxc4 {[%clk 0:01:42.4]} 23. Rxc4 {[%clk 0:01:14.8]} 23... Qb7
{[%clk 0:01:36.1]} 24. Rxc8+ {[%clk 0:01:15.3]} 24... Qxc8 {[%clk 0:01:37.1]}
25. Re1 {[%clk 0:01:13.6]} 25... Qb7 {[%clk 0:01:33.6]} 26. Bf6 {[%clk
0:01:11.2]} 26... Bf8 {[%clk 0:01:34.5]} 27. Qg4 {[%clk 0:00:57.3]} 27... Rg7
{[%clk 0:00:36.7]} 28. Re4 {[%clk 0:00:44.7]} 28... h5 {[%clk 0:00:32.5]} 29.
gxh6 {[%clk 0:00:35.5]} 29... Rh7 {[%clk 0:00:33.6]} 30. Rc4 {[%clk 0:00:15.8]}
30... Rxh6 {[%clk 0:00:30.5]} 31. a4 {[%clk 0:00:11]} 31... Rxh2 {[%clk
0:00:25.8]} 32. Kb2 {[%clk 0:00:11.8]} 32... Rh5 {[%clk 0:00:22.6]} 33. Bg5
{[%clk 0:00:12.4]} 33... Bg7+ {[%clk 0:00:21.3]} 34. Ka3 {[%clk 0:00:12.4]}
34... Rh1 {[%clk 0:00:20.9]} 35. c3 {[%clk 0:00:08.9]} 35... Ra1+ {[%clk
0:00:17]} 36. Kb2 {[%clk 0:00:09.9]} 36... Rb1+ {[%clk 0:00:18.2]} 37. Kc2
{[%clk 0:00:09.8]} 37... Qxb3+ {[%clk 0:00:19.1]} 38. Kd3 {[%clk 0:00:10.5]}
38... Rd1+ {[%clk 0:00:20.3]} 39. Ke2 {[%clk 0:00:11.6]} 39... Qc2+ {[%clk
0:00:20.4]} 40. Kf3 {[%clk 0:00:12]} 40... Rd3+ {[%clk 0:00:21.5]} 41. Ke4
{[%clk 0:00:12.1]} 41... Rxc3# {[%clk 0:00:21.7]} 0-1

[Event "*** Titled Tuesday Blitz"]
[Site "Chess.com"]
[Date "2019.01.01"]
[Round "10"]
[White "TheBigBoss04"]
[Black "vovachesss"]
[Result "0-1"]
[WhiteElo "2511"]
[BlackElo "2497"]
[TimeControl "180+2"]
[EndTime "15:21:50 PST"]
[Termination "vovachesss won by resignation"]

1. b3 {[%clk 0:01:16.3]} 1... c5 {[%clk 0:02:56.9]} 2. Bb2 {[%clk 0:01:18.2]}
2... Nc6 {[%clk 0:02:57.9]} 3. Nf3 {[%clk 0:01:18.1]} 3... d5 {[%clk 0:02:58]}
4. e3 {[%clk 0:01:17.9]} 4... Bg4 {[%clk 0:02:33.5]} 5. Bb5 {[%clk 0:01:18.1]}
5... Qb6 {[%clk 0:02:28.3]} 6. a4 {[%clk 0:01:14.5]} 6... Nf6 {[%clk 0:02:27.1]}
7. h3 {[%clk 0:01:14.9]} 7... Bh5 {[%clk 0:02:24.9]} 8. g4 {[%clk 0:01:05]} 8...
Bg6 {[%clk 0:02:25.3]} 9. Ne5 {[%clk 0:01:06.5]} 9... Nd7 {[%clk 0:02:16.2]} 10.
Nxd7 {[%clk 0:01:03.7]} 10... Kxd7 {[%clk 0:02:17.1]} 11. d3 {[%clk 0:01:02.1]}
11... e6 {[%clk 0:02:04]} 12. Nd2 {[%clk 0:01:02.8]} 12... f6 {[%clk 0:02:01.9]}
13. h4 {[%clk 0:01:03.2]} 13... h5 {[%clk 0:01:57.3]} 14. g5 {[%clk 0:01:03.7]}
14... Be7 {[%clk 0:01:55.9]} 15. Rg1 {[%clk 0:01:02.2]} 15... Bf5 {[%clk
0:01:55.8]} 16. e4 {[%clk 0:01:02]} 16... Bh7 {[%clk 0:01:32.8]} 17. g6 {[%clk
0:01:01.6]} 17... Bg8 {[%clk 0:01:33.9]} 18. exd5 {[%clk 0:00:57.5]} 18... exd5
{[%clk 0:01:34.7]} 19. Qf3 {[%clk 0:00:58]} 19... a6 {[%clk 0:01:30.6]} 20.
Bxc6+ {[%clk 0:00:58.6]} 20... Qxc6 {[%clk 0:01:32.5]} 21. a5 {[%clk 0:00:56.6]}
21... Be6 {[%clk 0:01:31.2]} 22. O-O-O {[%clk 0:00:50.5]} 22... Bg4 {[%clk
0:00:59.3]} 23. Rxg4 {[%clk 0:00:49.7]} 23... hxg4 {[%clk 0:01:01.2]} 24. Qxg4+
{[%clk 0:00:51.1]} 24... Qe6 {[%clk 0:01:02.8]} 25. Qg2 {[%clk 0:00:49.2]} 25...
Bd6 {[%clk 0:01:01.2]} 26. d4 {[%clk 0:00:44.1]} 26... Rac8 {[%clk 0:00:40]} 27.
dxc5 {[%clk 0:00:42.4]} 27... Rxc5 {[%clk 0:00:39.4]} 28. Nf3 {[%clk 0:00:43.7]}
28... Qe4 {[%clk 0:00:35.6]} 29. Qh3+ {[%clk 0:00:38.5]} 29... Kc7 {[%clk
0:00:31.2]} 30. Nd4 {[%clk 0:00:38.9]} 30... Rxh4 {[%clk 0:00:26.7]} 31. Qf1
{[%clk 0:00:20.1]} 31... Qxg6 {[%clk 0:00:20]} 32. Ne6+ {[%clk 0:00:19.9]} 32...
Kc6 {[%clk 0:00:18.3]} 33. Nxc5 {[%clk 0:00:17.8]} 33... Bxc5 {[%clk 0:00:19.3]}
34. Qe2 {[%clk 0:00:17.2]} 34... Qe4 {[%clk 0:00:17.7]} 35. Qf1 {[%clk
0:00:10.6]} 35... Rf4 {[%clk 0:00:18.5]} 36. Qg1 {[%clk 0:00:10.4]} 36... Rxf2
{[%clk 0:00:18.7]} 37. Rd3 {[%clk 0:00:03.4]} 37... Rxc2+ {[%clk 0:00:14.8]} 38.
Kxc2 {[%clk 0:00:04.7]} 38... Bxg1 {[%clk 0:00:16.7]} 0-1

[Event "*** Titled Tuesday Blitz"]
[Site "Chess.com"]
[Date "2019.01.01"]
[Round "10"]
[White "MatthewG-p4p"]
[Black "jcibarra"]
[Result "0-1"]
[WhiteElo "2637"]
[BlackElo "2736"]
[TimeControl "180+2"]
[EndTime "15:21:52 PST"]
[Termination "jcibarra won by resignation"]

1. c4 {[%clk 0:03:01.9]} 1... e5 {[%clk 0:03:00.4]} 2. Nc3 {[%clk 0:02:58.8]}
2... Nf6 {[%clk 0:03:00.6]} 3. g3 {[%clk 0:02:58.7]} 3... Bb4 {[%clk 0:02:59.1]}
4. Bg2 {[%clk 0:02:58.9]} 4... O-O {[%clk 0:02:59.9]} 5. e4 {[%clk 0:02:58.3]}
5... Nc6 {[%clk 0:02:59.2]} 6. Nge2 {[%clk 0:02:59.2]} 6... Bc5 {[%clk 0:03:00]}
7. O-O {[%clk 0:02:59.8]} 7... a6 {[%clk 0:03:01.5]} 8. d3 {[%clk 0:03:00.2]}
8... h6 {[%clk 0:03:01.2]} 9. h3 {[%clk 0:03:01.5]} 9... b5 {[%clk 0:03:00.5]}
10. b3 {[%clk 0:02:56.2]} 10... d6 {[%clk 0:03:00.7]} 11. Kh2 {[%clk 0:02:52.8]}
11... Nd4 {[%clk 0:03:00.2]} 12. f4 {[%clk 0:02:48.1]} 12... c6 {[%clk
0:02:27.8]} 13. Rb1 {[%clk 0:02:39.2]} 13... Re8 {[%clk 0:02:22.2]} 14. f5
{[%clk 0:02:13.7]} 14... Nxe2 {[%clk 0:02:05.6]} 15. Qxe2 {[%clk 0:02:09.4]}
15... Bd4 {[%clk 0:02:06.4]} 16. Bb2 {[%clk 0:02:04.5]} 16... b4 {[%clk
0:02:03]} 17. Nd1 {[%clk 0:02:05]} 17... Bxb2 {[%clk 0:02:03.5]} 18. Rxb2 {[%clk
0:02:06.9]} 18... d5 {[%clk 0:02:03.9]} 19. Ne3 {[%clk 0:02:02]} 19... Bb7
{[%clk 0:01:57]} 20. Ng4 {[%clk 0:01:59.3]} 20... dxe4 {[%clk 0:01:52.1]} 21.
Bxe4 {[%clk 0:01:53.2]} 21... Nxg4+ {[%clk 0:01:49.9]} 22. Qxg4 {[%clk
0:01:55.1]} 22... Qf6 {[%clk 0:01:51.3]} 23. Re2 {[%clk 0:01:54.8]} 23... Rad8
{[%clk 0:01:52.3]} 24. Qf3 {[%clk 0:01:55.5]} 24... Rd4 {[%clk 0:01:52.8]} 25.
h4 {[%clk 0:01:55.2]} 25... Red8 {[%clk 0:01:53.4]} 26. Kh3 {[%clk 0:01:55.1]}
26... Bc8 {[%clk 0:01:54.1]} 27. g4 {[%clk 0:01:52.7]} 27... Kf8 {[%clk
0:01:54.8]} 28. Rg1 {[%clk 0:01:53.1]} 28... Ke7 {[%clk 0:01:51.6]} 29. Re3
{[%clk 0:01:53.5]} 29... Kd6 {[%clk 0:01:50.4]} 30. Bxc6 {[%clk 0:01:52.5]}
30... Kc5 {[%clk 0:01:51.2]} 31. Bd5 {[%clk 0:01:48.4]} 31... h5 {[%clk
0:01:51.6]} 32. g5 {[%clk 0:01:38.8]} 32... Qxf5+ {[%clk 0:01:52.7]} 33. Qxf5
{[%clk 0:01:34.2]} 33... Bxf5+ {[%clk 0:01:54.6]} 34. Kg3 {[%clk 0:01:35.3]}
34... R8xd5 {[%clk 0:01:47.2]} 35. cxd5 {[%clk 0:01:36]} 35... Kxd5 {[%clk
0:01:49.1]} 36. Rf3 {[%clk 0:01:14.7]} 36... g6 {[%clk 0:01:34.3]} 37. Rh1
{[%clk 0:01:02.6]} 37... a5 {[%clk 0:01:26.7]} 38. Kf2 {[%clk 0:01:01.5]} 38...
e4 {[%clk 0:01:22.8]} 39. Rg3 {[%clk 0:00:50.6]} 39... exd3 {[%clk 0:01:23.3]}
40. Rd1 {[%clk 0:00:50.6]} 40... Rxh4 {[%clk 0:01:22.8]} 41. Re3 {[%clk
0:00:45.5]} 41... Rh2+ {[%clk 0:01:22.6]} 42. Kg3 {[%clk 0:00:47]} 42... Rxa2
{[%clk 0:01:22.7]} 43. Re7 {[%clk 0:00:48.6]} 43... Rb2 {[%clk 0:01:16.4]} 44.
Rxf7 {[%clk 0:00:48.4]} 44... Rxb3 {[%clk 0:01:17.8]} 45. Kf4 {[%clk 0:00:49.8]}
45... Rc3 {[%clk 0:01:17.1]} 46. Re1 {[%clk 0:00:48.3]} 46... Rc4+ {[%clk
0:01:16.6]} 47. Kg3 {[%clk 0:00:47.9]} 47... Rg4+ {[%clk 0:01:17.1]} 48. Kf3
{[%clk 0:00:49.2]} 48... Rxg5 {[%clk 0:01:17.7]} 49. Re8 {[%clk 0:00:49]} 49...
Kc4 {[%clk 0:01:15.9]} 50. Rc7+ {[%clk 0:00:49.6]} 50... Kb3 {[%clk 0:01:17]}
51. Rd8 {[%clk 0:00:51.5]} 51... Bg4+ {[%clk 0:01:15.8]} 52. Kf4 {[%clk
0:00:51.6]} 52... Rf5+ {[%clk 0:01:17]} 53. Ke3 {[%clk 0:00:53.1]} 53... Be2
{[%clk 0:01:18.5]} 54. Rg8 {[%clk 0:00:47.6]} 54... g5 {[%clk 0:01:17.6]} 55.
Rb7 {[%clk 0:00:48.9]} 55... g4 {[%clk 0:01:17.9]} 56. Rh7 {[%clk 0:00:46.4]}
56... Rd5 {[%clk 0:01:16.9]} 57. Kd2 {[%clk 0:00:47.8]} 57... a4 {[%clk
0:01:17]} 58. Rb7 {[%clk 0:00:45.8]} 58... a3 {[%clk 0:01:17.8]} 59. Rgb8 {[%clk
0:00:46.7]} 59... Rd4 {[%clk 0:01:19.1]} 60. Ra7 {[%clk 0:00:47.5]} 60... g3
{[%clk 0:01:18.6]} 61. Rg8 {[%clk 0:00:48.4]} 61... h4 {[%clk 0:01:18.9]} 62.
Ke1 {[%clk 0:00:49.2]} 62... d2+ {[%clk 0:01:18.6]} 0-1